bitfinex/quotes_ETHUSD_20250722
["timestamp","ask_amount","ask_price","bid_price","bid_amount"]
[1753191041777,0.1352,3690.5,3690.3,2.70974043]
[1753191041945,14.5,3690.9,3690.2,2.70985859]
[1753191042276,14.5,3690.9,3690.2,0.4708]
[1753191042577,0.1352,3690.7,3690.2,7.46562443]
[1753191042777,3.0,3690.6,3690.1,4.4202]
[1753191042939,2.84472919,3690.7,3690.1,4.4202]
[1753191042940,0.1352,3690.7,3690.1,0.1352]
[1753191043139,0.1352,3690.7,3690.1,4.4202]
[1753191043362,0.1352,3690.7,3690.1,7.13013946]
[1753191043672,0.1352,3690.7,3690.3,2.70974975]
[1753191043861,0.1352,3690.7,3690.2,0.4708]
[1753191044261,0.1352,3690.7,3690.1,4.4192]
[1753191044572,0.1352,3690.7,3690.2,2.70980725]
[1753191044950,3.28317731,3690.7,3690.2,4.284]
[1753191045156,3.0,3690.5,3690.2,4.284]
[1753191045355,3.0,3690.0,3689.9,0.001]
[1753191045570,3.0,3690.2,3689.9,0.001]
[1753191045571,3.1352,3690.2,3689.9,0.001]
[1753191045874,0.1352,3690.2,3689.9,0.4718]
[1753191046076,0.1352,3690.2,3689.6,4.4162]
[1753191046291,0.1352,3690.2,3689.7,2.71018759]
[1753191046482,0.71969502,3690.2,3689.6,0.1352]
[1753191046785,0.71969502,3690.2,3689.3,2.71052012]
[1753191046786,3.0,3689.9,3689.3,2.71052012]
[1753191046997,3.0,3690.0,3689.4,2.71040222]
[1753191047144,3.0,3690.0,3689.4,2.71044975]
[1753191047486,3.4384,3690.6,3689.2,5.0557]
[1753191047700,2.57005859,3690.6,3689.8,2.71012316]
[1753191047876,2.57005859,3690.6,3689.8,2.71017399]
[1753191048217,2.70956298,3690.7,3690.0,2.70997911]
[1753191048517,3.0,3690.8,3690.1,2.70995365]
[1753191048710,3.0,3690.8,3690.0,4.281]
[1753191048997,5.70948601,3690.8,3690.0,6.9910041]
[1753191049204,2.70952941,3690.7,3690.1,0.25125062]
[1753191049404,2.70952941,3690.7,3690.2,0.25125062]
[1753191049703,2.70958305,3690.7,3690.3,0.25125062]
[1753191050005,3.0,3690.8,3690.4,0.25125062]
[1753191050202,3.0,3690.8,3690.5,0.25125062]
[1753191050409,3.0,3690.8,3690.6,0.25125062]
[1753191050571,3.0,3690.8,3690.7,0.25125062]
[1753191050773,14.5,3690.9,3690.7,2.96075575]
[1753191050994,14.5,3690.9,3690.8,0.25125062]
[1753191051196,17.5,3690.9,3690.8,2.9606903]
[1753191051669,2.70860352,3692.0,3691.0,2.70925837]
[1753191051869,0.8187,3692.6,3691.2,0.8153]
[1753191052099,2.70812292,3692.6,3691.7,2.70876796]
[1753191052300,14.5,3692.5,3691.8,4.53825062]
[1753191052513,2.70742492,3693.6,3691.8,4.53825062]
[1753191052514,2.70789672,3693.0,3692.0,3.52382246]
[1753191052685,0.4638,3693.4,3692.2,2.70839767]
[1753191053011,3.0,3692.9,3692.3,0.25125062]
[1753191053318,2.70790939,3692.9,3692.4,0.25125062]
[1753191053496,2.70776656,3693.1,3692.5,0.25125062]
[1753191053673,3.0,3692.9,3692.6,0.25125062]
[1753191053869,14.5,3692.8,3692.7,0.25125062]
[1753191054082,17.5,3692.8,3692.7,0.25125062]
[1753191054524,20.20797227,3692.8,3692.7,0.25125062]
[1753191055217,20.67177227,3692.8,3692.7,0.25125062]
[1753191055419,23.04350556,3692.8,3692.7,0.25125062]
[1753191055578,23.86220556,3692.8,3692.7,0.25125062]
[1753191056005,28.69820556,3692.8,3692.7,0.25125062]
[1753191056212,28.14820556,3692.8,3692.7,0.25125062]
[1753191056513,23.86220556,3692.8,3692.7,0.25125062]
[1753191057199,3.0,3691.6,3691.4,4.29]
[1753191057395,3.0,3691.4,3691.1,4.29]
[1753191057796,14.5,3691.4,3691.1,4.4252]
[1753191057976,3.0,3691.3,3691.1,4.4252]
[1753191058407,0.1352,3691.8,3691.3,2.70902874]
[1753191058609,2.7086082,3692.0,3691.3,0.02709072]
[1753191058610,0.1352,3692.0,3691.3,0.02709072]
[1753191058795,0.1352,3692.0,3691.5,0.1352]
[1753191058997,0.1352,3692.0,3691.6,0.4394]
[1753191059308,0.1352,3692.0,3691.7,0.4394]
[1753191059512,3.0,3691.9,3691.5,0.1352]
[1753191059885,3.0,3691.8,3691.5,3.2835123]
[1753191060099,3.0,3691.8,3691.5,0.5746]
[1753191060306,3.0,3691.8,3691.6,4.289]
[1753191060614,3.1352,3692.3,3691.7,1.2433]
[1753191060920,0.1352,3692.3,3691.7,1.3785]
[1753191061139,14.5,3692.2,3691.7,1.3785]
[1753191061349,14.5,3692.2,3691.8,3.14809374]
[1753191061503,14.5,3692.2,3692.1,0.1352]
[1753191061691,2.70870578,3691.8,3691.7,4.4222]
[1753191061886,3.0,3691.6,3691.2,0.798]
[1753191062124,5.7088687,3691.6,3691.5,4.287]
[1753191062429,3.0,3691.2,3690.8,0.798]
[1753191062644,3.0,3691.3,3690.9,4.4222]
[1753191062991,3.0,3691.4,3690.9,4.4222]
[1753191063194,0.1352,3691.5,3691.3,2.70903112]
[1753191063426,3.0,3692.1,3691.4,0.4394]
[1753191063591,0.4638,3692.6,3691.4,0.4394]
[1753191063592,0.1352,3692.4,3691.5,0.7504]
[1753191063928,0.1372,3692.8,3692.0,0.1352]
[1753191064142,14.5,3692.7,3692.3,0.1352]
[1753191064349,3.0,3692.4,3692.3,4.4242]
[1753191064499,14.5,3692.7,3692.5,2.70811954]
[1753191064699,0.002,3692.8,3692.7,2.7080456]
[1753191064927,0.002,3692.8,3692.7,2.73512605]
[1753191065131,0.002,3692.8,3692.7,3.30972605]
[1753191065697,0.002,3692.8,3692.7,3.2826456]
[1753191066303,0.002,3692.8,3692.7,4.0406456]
[1753191066520,0.002,3692.8,3692.7,5.17285654]
[1753191066722,0.002,3692.8,3692.7,5.6226]
[1753191066919,0.002,3692.8,3692.7,4.4262]
[1753191067345,0.002,3692.8,3692.7,0.1352]
[1753191067552,0.002,3692.8,3692.7,4.4252]
[1753191067929,2.70821044,3692.5,3692.1,1.45169709]
[1753191068131,5.70821044,3692.5,3692.4,4.0]
[1753191068346,5.84341044,3692.5,3692.4,4.0]
[1753191068549,17.6352,3692.5,3692.4,4.0]
[1753191069057,17.5,3692.5,3692.4,4.0]
[1753191069233,20.20819228,3692.5,3692.4,4.0]
[1753191069621,23.81033715,3692.5,3692.4,4.0]
[1753191070022,5.70841232,3692.2,3692.1,1.45169709]
[1753191070217,3.1352,3692.1,3691.0,0.1352]
[1753191070460,2.70921947,3691.1,3691.0,0.1352]
[1753191070757,17.20921947,3691.1,3691.0,0.1352]
[1753191071125,3.1352,3691.6,3691.0,0.1352]
[1753191071353,0.1352,3691.6,3691.1,4.294]
[1753191071557,2.70905382,3691.4,3691.1,4.294]
[1753191071859,2.70921947,3691.1,3691.0,0.1352]
[1753191072034,2.70921516,3691.2,3691.0,4.4272]
[1753191072370,14.5,3691.4,3691.0,4.1352]
[1753191072525,14.5,3691.4,3691.0,8.8666]
[1753191072726,0.1352,3691.6,3691.0,8.8666]
[1753191073033,0.1352,3691.6,3691.0,8.4272]
[1753191073255,2.70916063,3691.2,3691.0,8.4272]
[1753191073775,3.48813109,3691.3,3691.0,4.1352]
[1753191073919,2.7091671,3691.2,3691.0,4.0]
[1753191074258,17.20921947,3691.1,3691.0,4.0]
[1753191074463,17.67301947,3691.1,3691.0,4.0]
[1753191074951,2.70937067,3690.9,3690.7,0.1352]
[1753191075159,14.9638,3691.1,3690.7,0.1352]
[1753191075357,14.5,3691.1,3690.7,0.1352]
[1753191075661,17.20924013,3691.1,3690.7,0.1352]
[1753191075957,14.5,3691.1,3690.7,0.1352]
[1753191076156,3.17311306,3691.0,3690.7,0.1352]
[1753191076360,14.5,3691.1,3690.7,0.1352]
[1753191076856,2.70930067,3691.0,3690.7,0.1352]
[1753191077156,14.5,3691.1,3690.7,0.1352]
[1753191077364,2.70929287,3691.0,3690.7,0.1352]
[1753191077666,17.20923562,3691.1,3690.7,0.1352]
[1753191077958,14.5,3691.1,3690.7,0.1352]
[1753191078184,0.9142,3691.3,3690.7,4.4182]
[1753191078477,2.70919966,3691.2,3690.7,4.4182]
[1753191078691,2.84428496,3691.3,3690.8,0.4571]
[1753191078895,0.1352,3691.3,3690.8,0.4571]
[1753191079163,0.1352,3691.3,3690.8,3.16653658]
[1753191079391,3.0,3691.6,3690.9,3.1663972]
[1753191079526,2.70834877,3692.3,3691.6,2.70881437]
[1753191079728,2.70837463,3692.3,3691.7,4.282]
[1753191079949,3.26353349,3692.3,3691.9,0.1352]
[1753191080157,2.84340193,3692.5,3691.9,0.1352]
[1753191080158,0.1352,3692.5,3691.9,0.1352]
[1753191080460,0.1352,3692.5,3692.0,4.288]
[1753191080760,0.4669,3692.4,3692.0,4.288]
[1753191080960,3.17516593,3692.4,3692.0,4.288]
[1753191081261,0.7847,3692.1,3691.2,4.288]
[1753191081485,0.1352,3692.0,3691.3,4.0]
[1753191081663,2.70885253,3691.6,3691.3,4.0]
[1753191081864,0.4669,3691.5,3691.3,4.0]
[1753191082165,2.70924771,3691.1,3690.6,0.001]
[1753191082366,2.70941635,3690.9,3690.7,8.288]
[1753191082527,5.70930333,3691.0,3690.7,8.288]
[1753191082726,0.4669,3691.0,3690.7,8.288]
[1753191082949,14.5,3690.8,3690.7,10.9975131]
[1753191083262,3.0,3691.3,3690.7,4.7451]
[1753191083450,0.1352,3691.4,3691.1,2.70919899]
[1753191083763,3.94568021,3692.2,3691.3,2.70907268]
[1753191083987,3.1352,3691.9,3691.3,0.1352]
[1753191084128,5.84384316,3691.9,3691.3,0.1352]
[1753191084322,17.20871954,3691.8,3691.3,0.1352]
[1753191084637,14.5,3691.8,3691.3,0.1352]
[1753191084840,14.5,3691.8,3691.7,2.70877915]
[1753191085038,0.4669,3692.6,3691.7,4.285]
[1753191085039,0.1352,3692.2,3691.7,4.285]
[1753191085266,0.1352,3692.4,3692.0,2.70850614]
[1753191085467,14.6352,3692.4,3692.1,2.7084822]
[1753191085800,0.1372,3692.7,3692.1,4.8753]
[1753191086095,0.1372,3692.7,3692.2,2.70839948]
[1753191086256,0.1372,3692.7,3692.1,4.98222]
[1753191086257,14.5,3692.6,3692.1,4.283]
[1753191086459,0.1352,3692.5,3692.1,4.283]
[1753191087389,2.70843146,3692.2,3691.9,0.1352]
[1753191087593,2.70843146,3692.2,3692.1,4.284]
[1753191087767,5.70855904,3692.0,3690.8,0.791]
[1753191087968,3.1352,3692.0,3691.4,0.1352]
[1753191088276,3.1352,3692.0,3691.5,0.25284387]
[1753191088479,5.70877915,3691.7,3691.6,0.25284387]
[1753191088663,6.49487915,3691.7,3691.6,0.25284387]
[1753191088863,8.35722629,3691.7,3691.6,0.25284387]
[1753191089060,23.40722629,3691.7,3691.6,0.25284387]
[1753191090588,27.69822629,3691.7,3691.6,0.25284387]
[1753191090898,22.07112629,3691.7,3691.6,0.25284387]
[1753191092095,2.7093455,3691.0,3690.6,0.001]
[1753191092392,3.1352,3691.0,3690.6,0.001]
[1753191092693,14.5,3690.9,3690.6,2.71057012]
[1753191092957,14.5,3690.9,3690.6,0.1362]
[1753191093208,17.20937147,3690.9,3690.6,0.1362]
[1753191093424,14.5,3690.9,3690.7,2.7095131]
[1753191093574,14.5,3690.9,3690.6,0.5933]
[1753191093575,14.5,3690.9,3690.8,0.1352]
[1753191094389,14.5,3690.9,3690.8,2.84463968]
[1753191094598,14.5,3690.9,3690.8,0.1352]
[1753191095597,15.95,3690.9,3690.6,0.001]
[1753191095821,2.7095131,3690.7,3690.6,0.001]
[1753191096311,3.1764131,3690.7,3690.6,0.001]
[1753191097615,6.1764131,3690.7,3690.6,0.001]
[1753191097815,6.7264131,3690.7,3690.6,0.001]
[1753191098038,38.00340686,3690.7,3690.6,1e-08]
[1753191098335,52.50340686,3690.7,3690.6,1e-08]
[1753191098541,3.53816782,3689.4,3688.5,0.001]
[1753191098683,10.83116782,3689.4,3688.5,0.001]
[1753191098882,11.92944483,3689.4,3688.5,0.001]
[1753191099190,56.97944483,3689.4,3688.5,0.001]
[1753191099385,2.71096343,3688.8,3688.5,0.001]
[1753191099701,2.71105568,3688.6,3688.5,0.001]
[1753191100205,7.48745568,3688.6,3688.5,0.001]
[1753191100413,8.88290282,3688.6,3688.5,0.001]
[1753191100789,22.83290282,3688.6,3688.5,0.001]
[1753191101013,27.14090282,3688.6,3688.5,0.001]
[1753191101708,27.13990282,3688.6,3688.5,0.001]
[1753191101918,27.88986052,3688.6,3688.5,1e-08]
[1753191102489,24.52094714,3688.6,3688.5,1e-08]
[1753191102738,27.69890282,3688.6,3688.5,1e-08]
[1753191103224,23.03790216,3688.6,3688.5,1e-08]
[1753191103524,27.91190216,3688.6,3688.5,1e-08]
[1753191103901,57.91190216,3688.6,3688.5,0.2515563]
[1753191104085,57.91190216,3688.6,3688.5,1e-08]
[1753191104622,27.91790216,3688.6,3688.5,1e-08]
[1753191104932,23.58790216,3688.6,3688.5,0.25133373]
[1753191105114,26.52345502,3688.6,3688.5,0.25133373]
[1753191105627,21.43745568,3688.6,3688.5,0.25133373]
[1753191105828,24.54205568,3688.6,3688.5,0.25133373]
[1753191106029,4.331,3689.2,3688.5,0.25133373]
[1753191106329,0.1352,3688.8,3688.6,0.25133372]
[1753191106503,14.6352,3688.8,3688.7,0.25133372]
[1753191106703,2.7108165,3689.0,3688.7,0.25133372]
[1753191106911,0.1352,3689.1,3688.8,0.25133372]
[1753191107124,0.1352,3689.1,3688.9,0.25133372]
[1753191107306,14.5,3689.0,3688.6,2.71102173]
[1753191107508,14.5,3689.0,3688.8,0.1352]
[1753191107713,0.7876,3689.9,3688.7,0.98933112]
[1753191107714,0.798,3690.5,3688.9,1.54182895]
[1753191107931,0.1352,3689.9,3689.3,0.1352]
[1753191108130,14.5,3689.8,3689.6,2.71030198]
[1753191108428,14.5,3689.8,3689.7,2.96117639]
[1753191108730,14.5,3689.8,3689.7,0.7181901]
[1753191109538,14.5,3689.8,3689.7,0.2508901]
[1753191110497,17.21017399,3689.8,3689.7,0.2508901]
[1753191110735,17.34537399,3689.8,3689.7,0.2508901]
[1753191111034,23.24170218,3689.8,3688.6,2.71103708]
[1753191111331,0.1352,3689.4,3688.8,6.84605972]
[1753191111494,2.71058882,3689.3,3688.8,0.1352]
[1753191111829,0.1352,3689.4,3688.9,0.4673]
[1753191112132,14.5,3689.3,3688.9,0.4673]
[1753191112326,14.5,3689.3,3688.8,0.1352]
[1753191112629,14.5,3689.3,3689.0,0.4673]
[1753191113693,17.2105436,3689.3,3688.8,0.1352]
[1753191113913,2.71063219,3689.2,3688.8,0.1352]
[1753191114127,2.71061476,3689.2,3688.8,0.1352]
[1753191114446,2.71061476,3689.2,3688.5,0.82680001]
[1753191114447,0.1352,3688.9,3688.5,1e-08]
[1753191114744,2.71105568,3688.6,3688.5,4.00000001]
[1753191115026,2.84625568,3688.6,3688.5,4.00000001]
[1753191115418,17.34625568,3688.6,3688.5,4.00000001]
[1753191115619,17.34625568,3688.6,3688.5,1e-08]
[1753191116727,20.16750212,3688.6,3688.5,1e-08]
[1753191117027,23.16750212,3688.6,3688.5,1e-08]
[1753191117231,24.53205568,3688.6,3688.5,1e-08]
[1753191117624,14.5,3688.6,3688.5,1e-08]
[1753191118435,17.21105568,3688.6,3688.5,1e-08]
[1753191118617,14.5,3688.6,3688.5,1e-08]
[1753191118820,17.21105568,3688.6,3688.5,1e-08]
[1753191119134,19.63525816,3688.6,3688.5,1e-08]
[1753191119338,20.10655816,3688.6,3688.5,1e-08]
[1753191119501,23.10655816,3688.6,3688.5,1e-08]
[1753191119705,23.30827814,3688.6,3688.5,1e-08]
[1753191120011,24.67277814,3688.6,3688.5,1e-08]
[1753191120537,54.67277814,3688.6,3688.5,1e-08]
[1753191121037,3.47104379,3687.8,3687.7,1e-08]
[1753191121336,11.68914817,3687.8,3687.7,1e-08]
[1753191121503,12.16044817,3687.8,3686.6,4.0]
[1753191121705,2.71230573,3686.9,3686.6,4.0]
[1753191121938,7.58330573,3686.9,3685.5,0.7698]
[1753191122125,15.05,3686.9,3685.9,0.4673]
[1753191122328,14.5,3686.9,3686.8,2.71637929]
[1753191122668,2.62592246,3688.6,3687.6,2.71171793]
[1753191122669,4.323,3688.1,3687.6,2.71171793]
[1753191122855,0.55,3688.2,3687.7,0.4673]
[1753191123139,14.5,3688.1,3687.8,0.25185121]
[1753191123443,37.03649674,3688.0,3687.0,0.02712232]
[1753191123628,6.5171586,3687.1,3687.0,0.02712232]
[1753191123939,6.5171586,3687.1,3685.0,0.4673]
[1753191123940,0.805,3686.6,3684.9,0.753]
[1753191124166,3.0,3686.4,3685.1,0.4673]
[1753191124368,3.0,3686.4,3685.2,7.05954821]
[1753191124369,2.71282079,3686.2,3685.2,7.05954821]
[1753191124642,2.71282079,3686.2,3684.7,2.71386535]
[1753191124643,0.02712249,3686.1,3686.0,2.71296798]
[1753191124805,0.02712249,3686.5,3686.4,2.71267361]
[1753191125107,14.5,3686.5,3686.4,3.17997361]
[1753191125539,14.5,3686.5,3686.1,0.8062]
[1753191125705,14.5,3686.5,3685.8,4.369]
[1753191125900,2.71285542,3686.2,3685.7,0.8146]
[1753191126135,2.71296798,3686.0,3685.7,0.8146]
[1753191126337,0.02712249,3686.2,3685.2,0.8328]
[1753191126538,0.55,3686.0,3685.3,4.0]
[1753191126745,0.02712249,3685.9,3685.3,4.0]
[1753191127046,0.02712249,3685.9,3684.3,6.508]
[1753191127047,3.48547785,3684.9,3683.3,0.4673]
[1753191127204,0.7717,3683.2,3680.7,0.8328]
[1753191127405,3.0,3683.0,3681.3,2.71636536]
[1753191127617,3.0,3682.8,3681.2,4.0]
[1753191127819,2.7158415,3682.1,3682.0,0.1352]
[1753191128238,3.1871415,3682.1,3682.0,0.1352]
[1753191128425,17.6871415,3682.1,3682.0,0.1352]
[1753191128626,0.7787,3682.0,3680.2,0.08376688]
[1753191128828,4.9323,3681.9,3681.5,0.1352]
[1753191129029,2.71621034,3681.6,3681.5,0.1352]
[1753191129230,7.17821034,3681.6,3681.5,0.1352]
[1753191129409,7.64951034,3681.6,3681.5,0.1352]
[1753191129607,14.5,3681.6,3681.5,0.1352]
[1753191129817,17.21621034,3681.6,3681.5,0.1352]
[1753191130063,3.49011574,3680.3,3680.2,0.08376688]
[1753191130272,32.71716979,3680.3,3680.2,0.21896688]
[1753191130409,36.18846979,3680.3,3680.2,0.08376688]
[1753191130616,0.7776,3680.1,3677.1,0.815323]
[1753191130947,0.7668,3678.3,3676.2,0.4673]
[1753191131150,3.0,3678.1,3675.4,3.5364085]
[1753191131321,2.71926452,3677.5,3676.3,2.72008527]
[1753191131520,2.71945636,3677.3,3676.1,2.72020707]
[1753191131854,0.7813,3677.1,3675.0,0.4673]
[1753191132057,44.5,3677.0,3675.0,0.4673]
[1753191132213,14.5,3677.0,3675.1,0.79]
[1753191132414,1.31408498,3680.9,3675.1,0.79]
[1753191132415,0.7813,3678.6,3676.2,0.8111]
[1753191132711,0.02712249,3678.5,3676.6,3.0]
[1753191132923,0.55,3678.3,3676.8,3.8111]
[1753191133125,0.20703374,3678.6,3678.2,3.0]
[1753191133336,0.816218,3679.7,3678.3,0.4673]
[1753191133716,0.20101519,3680.1,3679.2,3.0]
[1753191133923,0.815988,3680.8,3679.3,0.4673]
[1753191134129,2.71734421,3680.1,3678.8,2.71824978]
[1753191134327,5.4813,3680.0,3678.7,2.71830592]
[1753191134538,5.149,3679.9,3678.9,2.71819945]
[1753191134762,0.4713,3680.5,3679.0,0.02718129]
[1753191134928,14.5,3680.4,3679.0,0.4673]
[1753191135131,0.8181,3680.2,3677.6,4.0]
[1753191135450,0.55,3679.9,3677.7,4.2846]
[1753191135653,0.8181,3680.2,3677.8,0.4673]
[1753191135858,0.8141,3680.2,3677.9,3.0]
[1753191136054,6.516,3680.9,3678.2,2.71872111]
[1753191136255,0.55,3680.8,3679.0,3.0]
[1753191136553,0.815741,3681.4,3680.9,2.71669648]
[1753191136854,0.4713,3682.1,3680.1,0.4673]
[1753191137235,0.4713,3682.1,3680.4,2.71706957]
[1753191137552,0.4713,3682.1,3680.2,0.34673]
[1753191137758,0.4713,3682.1,3679.4,2.71783094]
[1753191137759,30.428,3682.0,3680.3,0.02717169]
[1753191137932,2.7173237,3680.1,3679.1,2.74522318]
[1753191138134,2.71718905,3680.3,3679.3,2.71786373]
[1753191138353,30.0,3680.2,3678.6,0.8304]
[1753191138538,2.71754835,3679.8,3678.6,3.54881422]
[1753191138738,0.55,3680.2,3678.7,0.39816142]
[1753191138920,1.3432,3680.0,3678.0,0.7003687]
[1753191139245,2.71769269,3679.6,3677.9,0.4328]
[1753191139421,0.55,3679.8,3677.9,0.4328]
[1753191139624,2.71791626,3679.3,3677.9,2.71894287]
[1753191139828,2.71815932,3679.0,3677.8,0.7842]
[1753191140152,5.306,3679.4,3677.8,0.7842]
[1753191140153,2.71797091,3679.3,3678.0,2.71885591]
[1753191140354,0.428,3679.7,3678.1,0.35030559]
[1753191140655,0.428,3679.7,3678.2,0.02718721]
[1753191140857,0.1352,3679.1,3678.5,0.1352]
[1753191141055,14.5,3679.2,3677.8,3.50320477]
[1753191141056,2.71818547,3679.0,3677.8,3.50320477]
[1753191141262,2.71805604,3679.1,3678.0,2.7187957]
[1753191141424,14.5,3679.2,3677.8,2.71901206]
[1753191141638,2.71812992,3679.0,3678.0,2.7188666]
[1753191141840,2.71813709,3679.0,3677.4,0.4328]
[1753191142175,4.21085882,3679.1,3678.2,2.71872024]
[1753191142339,17.2179844,3679.2,3678.3,2.71863762]
[1753191142536,17.2179844,3679.2,3677.4,0.4328]
[1753191142537,14.5,3679.2,3677.8,2.7190168]
[1753191142777,17.21798507,3679.2,3677.4,5.7148]
[1753191142965,17.21804974,3679.2,3678.1,2.71872137]
[1753191143164,2.71828913,3678.8,3677.9,2.7188774]
[1753191143342,2.71805996,3679.1,3678.3,2.7186405]
[1753191143536,14.5,3679.2,3678.3,0.02718647]
[1753191145155,2.71814077,3679.0,3678.3,0.02718647]
[1753191145351,14.5,3679.2,3677.8,0.4328]
[1753191145665,17.64601633,3679.2,3677.4,2.71929932]
[1753191145874,2.71849324,3678.6,3677.5,3.06161121]
[1753191146177,14.928,3679.2,3677.5,0.77520231]
[1753191146383,14.928,3679.2,3677.5,0.02719238]
[1753191146678,5.254,3679.5,3676.5,0.7977]
[1753191146679,2.71954297,3677.1,3676.5,0.7977]
[1753191146853,2.71954297,3677.1,3675.4,9.24178334]
[1753191146854,2.71984972,3676.7,3675.8,1.2305]
[1753191147042,14.5,3676.7,3675.9,5.256]
[1753191147243,14.5,3676.7,3676.0,4.64865]
[1753191147568,14.5,3676.7,3676.4,2.71998978]
[1753191147769,14.5,3676.7,3676.2,2.72013699]
[1753191148067,14.5,3676.7,3676.0,0.64865]
[1753191148267,14.5,3676.7,3675.8,0.7977]
[1753191148572,14.5,3676.7,3676.3,2.72012349]
[1753191148880,14.5,3676.7,3676.4,0.02720052]
[1753191149046,14.5,3676.7,3676.6,2.71990425]
[1753191149246,14.5,3676.7,3676.5,0.4328]
[1753191149247,14.5,3676.7,3676.3,5.246]
[1753191149575,14.5,3676.7,3676.1,7.96521562]
[1753191149774,14.5,3676.7,3676.2,2.72019938]
[1753191150079,2.71996415,3676.6,3675.8,7.96548519]
[1753191150379,14.5,3676.7,3675.2,0.4328]
[1753191150579,2.71996645,3676.6,3675.8,2.72048819]
[1753191150882,0.136,3676.5,3675.6,0.001]
[1753191151085,3.0,3676.6,3675.6,0.001]
[1753191151271,2.85657023,3675.7,3675.6,0.001]
[1753191151448,14.928,3676.4,3675.6,0.001]
[1753191151648,14.5,3676.4,3675.6,0.137]
[1753191151848,14.5,3676.4,3675.7,0.0272057]
[1753191152069,14.5,3676.4,3676.3,0.136]
[1753191152250,0.8225,3677.1,3676.1,2.72022424]
[1753191152447,0.1352,3676.5,3675.9,0.136]
[1753191152680,0.1352,3676.5,3675.9,2.75639339]
[1753191152900,14.5,3676.4,3675.9,0.036]
[1753191153084,0.428,3676.3,3675.6,0.001]
[1753191153450,14.5,3676.4,3675.6,2.72158034]
[1753191153787,2.72006878,3676.4,3675.7,2.72056285]
[1753191153951,0.8225,3677.1,3675.6,0.001]
[1753191154164,14.928,3677.0,3675.6,0.001]
[1753191154684,2.72025801,3676.2,3675.6,0.001]
[1753191154873,0.428,3676.9,3675.7,2.72057023]
[1753191155075,30.0,3676.8,3672.9,0.816363]
[1753191155274,2.36975053,3678.5,3674.6,0.8235]
[1753191155275,0.428,3676.7,3674.6,0.8235]
[1753191155585,14.5,3676.0,3674.6,3.54488169]
[1753191155895,2.72091317,3675.3,3674.2,2.72162518]
[1753191156095,5.248,3676.5,3674.1,5.248]
[1753191156096,2.72094415,3675.2,3674.3,1.15113387]
[1753191156300,2.72103371,3675.1,3674.3,1.15113387]
[1753191156597,14.5,3675.0,3674.3,6.39713387]
[1753191156765,14.5,3675.0,3674.3,1.15113387]
[1753191157098,2.72131784,3674.7,3673.8,5.24]
[1753191157263,0.428,3674.9,3674.2,2.72160785]
[1753191157465,14.5,3675.0,3674.3,0.02721606]
[1753191157799,14.5,3675.0,3674.2,0.7576]
[1753191157964,14.5,3675.0,3674.2,5.9906]
[1753191158161,14.5,3675.0,3674.3,0.91452277]
[1753191158796,14.5,3675.0,3673.3,2.72228829]
[1753191158797,4.2556,3674.9,3673.3,2.72230509]
[1753191158999,4.2556,3674.9,3672.7,0.4328]
[1753191159000,2.72161059,3674.3,3672.8,5.231]
[1753191159174,14.5,3674.2,3672.7,0.4328]
[1753191159497,14.5,3674.2,3672.8,5.68902718]
[1753191159699,14.5,3674.2,3672.9,0.56890272]
[1753191159888,2.72192937,3673.9,3672.9,0.56890272]
[1753191160080,17.22168448,3674.2,3672.9,0.56890272]
[1753191160280,14.5,3674.2,3672.9,0.56890272]
[1753191160467,14.5,3674.2,3672.4,0.4328]
[1753191160668,2.7218184,3674.1,3672.8,7.95570925]
[1753191160873,2.72199211,3673.8,3672.8,5.233]
[1753191161093,14.5,3674.2,3672.6,7.95181178]
[1753191161293,2.72233902,3673.4,3672.3,0.7576]
[1753191161615,2.72175498,3674.1,3672.3,0.7576]
[1753191161616,0.7871,3673.9,3672.3,0.7576]
[1753191161781,2.72213059,3673.6,3672.4,5.25023014]
[1753191161981,2.72188582,3674.0,3672.4,5.25023014]
[1753191162184,2.72218028,3673.6,3672.6,2.72282243]
[1753191162384,14.5,3674.2,3672.7,0.79730526]
[1753191162566,1.508346,3673.9,3672.3,0.7576]
[1753191163078,2.7225701,3673.0,3672.9,0.136]
[1753191163267,0.136,3673.5,3672.9,0.136]
[1753191163471,2.72198462,3673.8,3672.9,0.136]
[1753191163669,1.508346,3673.9,3673.3,0.136]
[1753191163670,2.72227048,3673.5,3673.3,0.136]
[1753191163915,14.5,3673.7,3673.3,0.136]
[1753191164087,14.5,3673.7,3673.6,3.53562543]
[1753191164308,1.508346,3673.9,3673.6,0.8135]
[1753191164489,1.508346,3673.9,3672.2,2.72315198]
[1753191164689,1.508346,3673.9,3671.8,0.8135]
[1753191164690,3.7814,3673.7,3671.8,0.8135]
[1753191164889,30.0,3673.6,3671.8,0.8135]
[1753191165224,2.72353405,3671.7,3671.6,4.0]
[1753191165422,0.13851487,3672.6,3670.3,7.08792371]
[1753191165624,0.7601,3673.3,3671.0,7.08792371]
[1753191165625,14.5,3672.5,3671.0,7.08792371]
[1753191165788,3.0,3673.2,3671.6,0.7849]
[1753191165987,3.0,3673.2,3671.7,0.02723534]
[1753191165988,2.7225701,3673.0,3671.7,0.02723534]
[1753191166188,5.213,3672.9,3671.7,0.02723534]
[1753191166518,0.7601,3673.3,3671.8,2.72345988]
[1753191166738,5.209,3673.7,3671.9,1.08686221]
[1753191166940,14.5,3673.2,3671.9,1.05962836]
[1753191167108,5.209,3673.1,3671.6,0.7849]
[1753191167306,2.7225701,3673.0,3671.6,0.7849]
[1753191167533,5.208,3672.9,3671.6,0.7849]
[1753191167717,5.208,3672.9,3671.0,0.794]
[1753191167718,2.72306724,3672.4,3671.0,0.794]